bitfinex/quotes_ETHUSD_20240915
["timestamp","ask_amount","ask_price","bid_price","bid_amount"]
[1726401316759,0.05893048,2412.9,2412.7,1.61119224]
[1726401316963,0.05893048,2412.9,2412.6,0.8682389]
[1726401317198,0.05893048,2412.9,2412.7,1.61091105]
[1726401317380,0.05893048,2412.9,2412.6,0.8682389]
[1726401317584,0.05893048,2412.9,2412.7,1.61085758]
[1726401317788,0.05893048,2412.9,2412.6,0.8682389]
[1726401318088,0.05893048,2412.9,2412.7,1.61083243]
[1726401318284,0.05893048,2412.9,2412.6,0.8682389]
[1726401318487,0.05893048,2412.9,2412.7,1.61080285]
[1726401318699,0.05893048,2412.9,2412.6,0.8682389]
[1726401318902,0.05893048,2412.9,2412.7,1.61056716]
[1726401319102,0.05893048,2412.9,2412.6,0.8682389]
[1726401319303,0.05893048,2412.9,2412.7,1.6105034]
[1726401319600,0.05893048,2412.9,2412.6,0.8682389]
[1726401319779,0.05893048,2412.9,2412.7,1.61047089]
[1726401319969,0.05893048,2412.9,2412.6,0.8682389]
[1726401320199,0.05893048,2412.9,2412.7,1.61050409]
[1726401320369,0.05893048,2412.9,2412.6,0.8682389]
[1726401320570,0.05893048,2412.9,2412.7,1.61039183]
[1726401320772,0.05893048,2412.9,2412.6,0.8682389]
[1726401321068,0.05893048,2412.9,2412.7,1.61039202]
[1726401321282,0.05893048,2412.9,2412.6,0.8682389]
[1726401321482,0.05893048,2412.9,2412.7,1.61039562]
[1726401321682,0.05893048,2412.9,2412.6,0.8682389]
[1726401321897,0.05893048,2412.9,2412.7,1.61038163]
[1726401322111,0.05893048,2412.9,2412.6,0.8682389]
[1726401322312,0.05893048,2412.9,2412.7,1.6103269]
[1726401322612,0.05893048,2412.9,2412.6,0.8682389]
[1726401322809,0.05893048,2412.9,2412.7,1.6102974]
[1726401323105,0.05893048,2412.9,2412.6,0.8682389]
[1726401323411,0.05893048,2412.9,2412.7,1.61030175]
[1726401323573,0.05893048,2412.9,2412.6,0.8682389]
[1726401323771,0.05893048,2412.9,2412.7,1.61019718]
[1726401324007,0.05893048,2412.9,2412.6,0.8682389]
[1726401324310,0.05893048,2412.9,2412.7,1.61020017]
[1726401324469,0.05893048,2412.9,2412.6,0.8682389]
[1726401324669,0.05893048,2412.9,2412.7,1.61018855]
[1726401324867,0.05893048,2412.9,2412.7,2.2541]
[1726401325113,4.14407,2413.1,2412.7,2.2541]
[1726401325279,0.0590099,2413.0,2412.7,2.2541]
[1726401328517,2.0173099,2413.0,2412.7,2.2541]
[1726401329415,6.1615499,2413.0,2412.7,2.2541]
[1726401329923,2.0173099,2413.0,2412.6,0.8682389]
[1726401330217,2.0173099,2413.0,2412.7,1.60851932]
[1726401330515,2.0173099,2413.0,2412.6,0.8682389]
[1726401330684,2.0173099,2413.0,2412.7,1.60835705]
[1726401331017,6.1615499,2413.0,2412.6,0.8682389]
[1726401331215,6.1615499,2413.0,2412.7,1.60839234]
[1726401331419,6.1615499,2413.0,2412.6,0.8682389]
[1726401331613,6.1615499,2413.0,2412.7,1.60871333]
[1726401331823,6.1615499,2413.0,2412.6,0.8682389]
[1726401331988,6.1615499,2413.0,2412.7,1.60872762]
[1726401332177,6.1615499,2413.0,2412.6,0.8682389]
[1726401332374,6.1615499,2413.0,2412.7,1.60873594]
[1726401332582,6.1615499,2413.0,2412.6,0.8682389]
[1726401332887,6.1615499,2413.0,2412.7,1.60890198]
[1726401333085,6.1615499,2413.0,2412.6,0.8682389]
[1726401333284,6.1615499,2413.0,2412.7,1.60916837]
[1726401333514,6.1615499,2413.0,2412.6,0.8682389]
[1726401333726,6.1615499,2413.0,2412.7,1.6093034]
[1726401333928,6.1615499,2413.0,2412.6,0.8682389]
[1726401334128,6.1615499,2413.0,2412.7,1.60929682]
[1726401334427,6.1615499,2413.0,2412.6,0.8682389]
[1726401334609,6.1615499,2413.0,2412.7,1.60937282]
[1726401334823,6.1615499,2413.0,2412.6,0.8682389]
[1726401334987,6.1615499,2413.0,2412.7,1.60948179]
[1726401335189,6.1615499,2413.0,2412.6,0.8682389]
[1726401335525,6.1615499,2413.0,2412.7,1.60961283]
[1726401335719,6.1615499,2413.0,2412.6,0.8682389]
[1726401335926,6.1615499,2413.0,2412.7,1.60969136]
[1726401336122,6.1615499,2413.0,2412.6,0.8682389]
[1726401336426,6.1615499,2413.0,2412.7,1.60966933]
[1726401336631,6.1615499,2413.0,2412.6,0.8682389]
[1726401336926,6.1615499,2413.0,2412.7,1.60956556]
[1726401337136,6.1615499,2413.0,2412.6,0.8682389]
[1726401337332,6.1615499,2413.0,2412.7,1.60958524]
[1726401337538,6.1615499,2413.0,2412.6,0.8682389]
[1726401337690,6.1615499,2413.0,2412.7,1.60960206]
[1726401338019,6.1615499,2413.0,2412.6,0.8682389]
[1726401338330,6.1615499,2413.0,2412.7,1.6095541]
[1726401338503,6.1615499,2413.0,2412.6,0.8682389]
[1726401338703,6.1615499,2413.0,2412.7,1.60937822]
[1726401338916,6.1615499,2413.0,2412.6,0.8682389]
[1726401339115,6.1615499,2413.0,2412.7,1.60934245]
[1726401339331,6.1615499,2413.0,2412.6,0.8682389]
[1726401339504,6.1615499,2413.0,2412.7,1.60937132]
[1726401339801,6.1615499,2413.0,2412.6,0.8682389]
[1726401340000,6.1615499,2413.0,2412.7,1.60935835]
[1726401340201,6.1615499,2413.0,2412.6,0.8682389]
[1726401340401,6.1615499,2413.0,2412.7,1.60903287]
[1726401340604,6.1615499,2413.0,2412.6,0.8682389]
[1726401340824,6.1615499,2413.0,2412.7,1.60904876]
[1726401341003,6.1615499,2413.0,2412.6,0.8682389]
[1726401341193,6.1615499,2413.0,2412.7,1.609125]
[1726401341526,6.1615499,2413.0,2412.6,0.8682389]
[1726401341726,6.1615499,2413.0,2412.7,1.609142]
[1726401342027,6.1615499,2413.0,2412.6,0.8682389]
[1726401342327,6.1615499,2413.0,2412.7,1.60914234]
[1726401342493,0.0590099,2413.0,2412.6,0.8682389]
[1726401342829,0.0590099,2413.0,2412.7,2.47751636]
[1726401343025,0.0590099,2413.0,2412.8,1.60927746]
[1726401343193,0.0590099,2413.0,2412.7,0.8682389]
[1726401343390,0.0590099,2413.0,2412.8,1.60928546]
[1726401343730,0.0590099,2413.0,2412.7,0.8682389]
[1726401344034,0.0590099,2413.0,2412.8,1.60933682]
[1726401344191,0.0590099,2413.0,2412.7,0.8682389]
[1726401344392,0.0590099,2413.0,2412.8,1.60934665]
[1726401344714,0.0590099,2413.0,2412.7,0.8682389]
[1726401344917,0.0590099,2413.0,2412.8,1.60942783]
[1726401345226,0.0590099,2413.0,2412.7,0.8682389]
[1726401345423,0.0590099,2413.0,2412.8,1.60944241]
[1726401345587,0.0590099,2413.0,2412.7,0.8682389]
[1726401345795,0.0590099,2413.0,2412.8,1.60955317]
[1726401346097,0.0590099,2413.0,2412.8,2.3444]
[1726401347008,0.0588093,2412.9,2412.8,2.3444]
[1726401347325,0.0588093,2412.9,2412.8,3.95386452]
[1726401347530,6.1022,2413.2,2412.8,3.95386452]
[1726401347838,1.024598,2413.1,2412.8,2.3444]
[1726401348130,1.08355687,2413.1,2412.8,2.3444]
[1726401350010,5.22762687,2413.1,2412.8,2.3444]
[1726401350213,5.22762687,2413.1,2412.7,0.8682389]
[1726401350410,5.22762687,2413.1,2412.8,1.60951808]
[1726401350637,5.22762687,2413.1,2412.7,0.8682389]
[1726401350805,1.08355687,2413.1,2412.8,1.60944444]
[1726401351130,1.08355687,2413.1,2412.7,0.8682389]
[1726401351365,1.08355687,2413.1,2412.8,1.6094852]
[1726401351535,1.08355687,2413.1,2412.9,1.60944144]
[1726401351691,1.08355687,2413.1,2412.7,1.30235835]
[1726401351692,1.08355687,2413.1,2412.7,0.8682389]
[1726401351892,1.08355687,2413.1,2412.8,2.4777402]
[1726401352128,1.08355687,2413.1,2412.9,1.6095013]
[1726401352336,1.08355687,2413.1,2412.8,0.8682389]
[1726401352492,1.08355687,2413.1,2412.7,0.8682389]
[1726401352689,0.05895887,2413.1,2412.8,1.6094158]
[1726401353039,0.05895887,2413.1,2412.7,0.8682389]
[1726401353205,0.05895887,2413.1,2412.8,1.60943161]
[1726401353406,0.05895887,2413.1,2412.7,0.8682389]
[1726401353643,0.05895887,2413.1,2412.8,1.60942182]
[1726401353820,0.05895887,2413.1,2412.7,0.8682389]
[1726401354131,0.05895887,2413.1,2412.8,1.60941364]
[1726401354308,0.05895887,2413.1,2412.7,0.8682389]
[1726401354506,0.05895887,2413.1,2412.8,1.60939197]
[1726401354711,0.05895887,2413.1,2412.7,0.8682389]
[1726401355035,0.05895887,2413.1,2412.8,2.47756305]
[1726401355243,0.05895887,2413.1,2412.9,1.60932415]
[1726401355438,1.08946276,2413.1,2412.8,0.8682389]
[1726401355644,1.08946276,2413.1,2412.9,1.60926965]
[1726401355844,1.08946276,2413.1,2412.8,0.8682389]
[1726401356044,1.08946276,2413.1,2412.9,1.60939164]
[1726401356210,1.08946276,2413.1,2412.8,0.8682389]
[1726401356546,1.08946276,2413.1,2412.9,1.60933749]
[1726401356842,1.08946276,2413.1,2412.8,0.8682389]
[1726401357047,1.08946276,2413.1,2412.9,1.60926603]
[1726401357347,1.08946276,2413.1,2412.8,0.8682389]
[1726401357547,1.08946276,2413.1,2412.9,1.60915548]
[1726401357848,1.08946276,2413.1,2412.8,3.2566389]
[1726401358000,1.08946276,2413.1,2412.9,1.60910096]
[1726401358207,1.08946276,2413.1,2412.8,3.2566389]
[1726401358403,1.08946276,2413.1,2412.9,1.60903668]
[1726401358642,1.08946276,2413.1,2412.8,3.2566389]
[1726401358869,1.08946276,2413.1,2412.9,1.60907544]
[1726401359023,1.08946276,2413.1,2412.8,3.2566389]
[1726401359206,1.08946276,2413.1,2412.9,1.60910723]
[1726401359408,1.08946276,2413.1,2412.8,3.2566389]
[1726401359608,1.08946276,2413.1,2412.9,1.60905365]
[1726401359808,1.08946276,2413.1,2412.8,3.2566389]
[1726401360010,1.08946276,2413.1,2412.9,1.60906881]
[1726401360207,1.08946276,2413.1,2412.8,3.2566389]
[1726401360407,1.08946276,2413.1,2412.9,1.60905165]
[1726401360633,1.08946276,2413.1,2412.8,3.2566389]
[1726401360816,1.08946276,2413.1,2412.9,1.60904162]
[1726401361115,1.08946276,2413.1,2412.8,3.2566389]
[1726401361321,1.08946276,2413.1,2412.9,1.6090517]
[1726401361542,1.08946276,2413.1,2412.8,3.2566389]
[1726401361750,1.08946276,2413.1,2412.9,1.60886805]
[1726401361912,1.08946276,2413.1,2412.8,3.2566389]
[1726401362247,1.08946276,2413.1,2412.9,1.60894159]
[1726401362547,1.08946276,2413.1,2412.8,3.2566389]
[1726401362765,1.08946276,2413.1,2412.9,1.60889848]
[1726401362936,1.08946276,2413.1,2412.8,3.2566389]
[1726401363148,1.08946276,2413.1,2412.9,1.60885955]
[1726401363340,0.05895887,2413.1,2412.8,7.4011789]
[1726401363537,0.05895887,2413.1,2412.9,1.60883489]
[1726401363845,1.9583,2413.4,2412.8,7.4011789]
[1726401364027,1.9583,2413.4,2412.9,1.60874867]
[1726401364028,0.05687258,2413.0,2412.9,1.60874867]
[1726401364225,1.9583,2413.4,2412.9,1.60874867]
[1726401364427,0.05574248,2413.0,2412.8,7.4011789]
[1726401364665,1.9583,2413.4,2412.9,1.60867443]
[1726401364864,0.05562527,2412.9,2412.8,7.4011789]
[1726401365064,0.05562527,2412.9,2412.8,9.00986336]
[1726401365263,7.484484,2413.4,2412.8,9.00986336]
[1726401365438,1.2061624,2413.3,2412.9,1.60868446]
[1726401365644,1.2061624,2413.3,2412.8,7.4011789]
[1726401365842,1.2061624,2413.3,2412.9,1.60842601]
[1726401366167,1.2061624,2413.3,2412.8,7.4011789]
[1726401366342,5.3498824,2413.3,2412.9,1.60841742]
[1726401366534,5.3498824,2413.3,2412.8,7.4011789]
[1726401366735,5.3498824,2413.3,2412.9,1.608326]
[1726401367049,5.3498824,2413.3,2412.8,7.4011789]
[1726401367226,5.3498824,2413.3,2412.9,1.60830305]
[1726401367428,5.3498824,2413.3,2412.8,7.4011789]
[1726401367629,5.3498824,2413.3,2412.9,1.60831056]
[1726401367854,5.3498824,2413.3,2412.8,7.4011789]
[1726401368055,5.3498824,2413.3,2412.9,1.60830726]
[1726401368242,5.3498824,2413.3,2412.8,7.4011789]
[1726401368527,5.3498824,2413.3,2412.9,1.60814087]
[1726401368727,5.3498824,2413.3,2412.8,7.4011789]
[1726401368988,5.3498824,2413.3,2412.9,1.6081235]
[1726401369135,0.92502124,2413.2,2412.8,7.4011789]
[1726401369339,0.0559486,2413.2,2412.9,1.60828184]
[1726401369546,0.0559486,2413.2,2412.8,7.4011789]
[1726401369742,5.3498824,2413.3,2412.9,1.60819423]
[1726401370082,5.3498824,2413.3,2412.8,7.4011789]
[1726401370248,0.05407,2413.2,2412.9,1.60824195]
[1726401370567,1.9583,2413.1,2412.8,0.8682389]
[1726401370771,2.01225281,2413.1,2412.7,0.8682389]
[1726401370984,2.01225281,2413.1,2412.8,1.60833936]
[1726401371128,2.01225281,2413.1,2412.7,0.8682389]
[1726401371328,2.01225281,2413.1,2412.8,1.60834697]
[1726401371576,2.01225281,2413.1,2412.7,0.8682389]
[1726401371772,2.01225281,2413.1,2412.8,1.60836348]
[1726401371935,2.01225281,2413.1,2412.7,0.8682389]
[1726401372135,2.01225281,2413.1,2412.8,1.6084444]
[1726401372361,2.01225281,2413.1,2412.7,0.8682389]
[1726401372576,2.01225281,2413.1,2412.8,1.60871061]
[1726401372775,2.01225281,2413.1,2412.7,0.8682389]
[1726401372949,2.01225281,2413.1,2412.8,1.60878689]
[1726401373138,2.01225281,2413.1,2412.7,0.8682389]
[1726401373330,2.01225281,2413.1,2412.8,1.60883912]
[1726401373534,2.01225281,2413.1,2412.7,0.8682389]
[1726401373757,2.01225281,2413.1,2412.8,1.60880971]
[1726401374086,2.01225281,2413.1,2412.7,0.8682389]
[1726401374369,2.01225281,2413.1,2412.8,1.60880501]
[1726401374574,2.01225281,2413.1,2412.7,0.8682389]
[1726401374869,2.01225281,2413.1,2412.8,1.60876955]
[1726401375079,6.15630281,2413.1,2412.7,0.8682389]
[1726401375237,6.15630281,2413.1,2412.8,1.60916815]
[1726401375434,6.15630281,2413.1,2412.7,0.8682389]
[1726401375657,6.15630281,2413.1,2412.8,1.60923165]
[1726401375871,6.15630281,2413.1,2412.7,0.8682389]
[1726401376049,6.15630281,2413.1,2412.8,1.60928665]
[1726401376383,6.15630281,2413.1,2412.7,0.8682389]
[1726401376546,6.15630281,2413.1,2412.8,1.60940539]
[1726401376754,6.15630281,2413.1,2412.7,0.8682389]
[1726401377051,6.15630281,2413.1,2412.8,1.60939762]
[1726401377258,6.15630281,2413.1,2412.7,0.8682389]
[1726401377466,6.15630281,2413.1,2412.8,1.60954996]
[1726401377671,6.15630281,2413.1,2412.7,0.8682389]
[1726401377877,6.15630281,2413.1,2412.8,1.60944649]
[1726401378074,6.15630281,2413.1,2412.7,0.8682389]
[1726401378395,6.15630281,2413.1,2412.8,1.60948475]
[1726401378556,6.15630281,2413.1,2412.7,0.8682389]
[1726401378761,6.15630281,2413.1,2412.8,1.60955]
[1726401378949,6.15630281,2413.1,2412.7,0.8682389]
[1726401379151,6.15630281,2413.1,2412.8,1.60959878]
[1726401379371,6.15630281,2413.1,2412.7,0.8682389]
[1726401379594,6.15630281,2413.1,2412.8,1.60955559]
[1726401379899,6.15630281,2413.1,2412.7,0.8682389]
[1726401380050,6.15630281,2413.1,2412.8,1.60963304]
[1726401380372,6.15630281,2413.1,2412.7,0.8682389]
[1726401380573,6.15630281,2413.1,2412.8,1.60965164]
[1726401380776,6.15630281,2413.1,2412.7,0.8682389]
[1726401380977,6.15630281,2413.1,2412.8,1.60966507]
[1726401381152,6.15630281,2413.1,2412.7,0.8682389]
[1726401381358,6.15630281,2413.1,2412.8,1.60968487]
[1726401381692,6.15630281,2413.1,2412.7,0.8682389]
[1726401381848,6.15630281,2413.1,2412.8,1.60969791]
[1726401382046,6.15630281,2413.1,2412.7,0.8682389]
[1726401382281,6.15630281,2413.1,2412.8,1.60973297]
[1726401382462,6.15630281,2413.1,2412.7,0.8682389]
[1726401382673,6.15630281,2413.1,2412.8,1.60981207]
[1726401382992,6.15630281,2413.1,2412.7,0.8682389]
[1726401383156,6.15630281,2413.1,2412.8,1.60974334]
[1726401383485,6.15630281,2413.1,2412.7,0.8682389]
[1726401383650,6.15630281,2413.1,2412.8,1.60985071]
[1726401383854,6.15630281,2413.1,2412.7,0.8682389]
[1726401384048,6.15630281,2413.1,2412.8,1.61002079]
[1726401384352,6.15630281,2413.1,2412.7,0.8682389]
[1726401384551,6.15630281,2413.1,2412.8,1.61031744]
[1726401384791,6.15630281,2413.1,2412.7,0.8682389]
[1726401385090,6.15630281,2413.1,2412.8,1.61033818]
[1726401385297,6.15630281,2413.1,2412.7,0.8682389]
[1726401385455,6.15630281,2413.1,2412.8,1.61033393]
[1726401385655,10.30047281,2413.1,2412.7,0.8682389]
[1726401385897,10.30047281,2413.1,2412.8,1.61029436]
[1726401386193,6.15630281,2413.1,2412.7,0.8682389]
[1726401386347,6.15630281,2413.1,2412.8,1.6102717]
[1726401386551,6.15630281,2413.1,2412.7,0.8682389]
[1726401386791,6.15630281,2413.1,2412.8,1.6102212]
[1726401387094,6.15630281,2413.1,2412.7,0.8682389]
[1726401387304,6.15630281,2413.1,2412.8,1.61022808]
[1726401387587,6.15630281,2413.1,2412.7,0.8682389]
[1726401387792,6.15630281,2413.1,2412.8,1.61024125]
[1726401387995,6.15630281,2413.1,2412.7,0.8682389]
[1726401388189,6.15630281,2413.1,2412.8,1.61029957]
[1726401388392,6.15630281,2413.1,2412.9,1.61026286]
[1726401388598,6.15630281,2413.1,2412.8,0.8682389]
[1726401388752,6.15630281,2413.1,2412.9,1.61025536]
[1726401389091,6.15630281,2413.1,2412.8,0.8682389]
[1726401389292,6.15630281,2413.1,2412.9,1.61034431]
[1726401389491,6.15630281,2413.1,2412.8,0.8682389]
[1726401389702,6.15630281,2413.1,2412.9,1.61031572]
[1726401389993,6.15630281,2413.1,2412.8,0.8682389]
[1726401390202,6.15630281,2413.1,2412.9,1.61030584]
[1726401390496,6.15630281,2413.1,2412.8,0.8682389]
[1726401390695,6.15630281,2413.1,2412.9,1.61038239]
[1726401390870,6.15630281,2413.1,2412.8,0.8682389]
[1726401391054,6.15630281,2413.1,2412.9,1.61039491]
[1726401391255,6.15630281,2413.1,2412.8,0.8682389]
[1726401391451,6.15630281,2413.1,2412.9,1.61044854]
[1726401391756,6.15630281,2413.1,2412.8,0.8682389]
[1726401391971,6.15630281,2413.1,2412.9,1.61038747]
[1726401392171,6.15630281,2413.1,2412.8,0.8682389]
[1726401392383,6.15630281,2413.1,2412.9,1.61039963]
[1726401392570,6.15630281,2413.1,2412.8,0.8682389]
[1726401392771,6.15630281,2413.1,2412.9,1.61038141]
[1726401392986,6.15630281,2413.1,2412.8,0.8682389]
[1726401393184,6.15630281,2413.1,2412.9,1.61038341]
[1726401393358,6.15630281,2413.1,2412.8,0.8682389]
[1726401393569,6.15630281,2413.1,2412.9,1.6103877]
[1726401393776,6.15630281,2413.1,2412.8,0.8682389]
[1726401393958,6.15630281,2413.1,2412.9,1.61047195]
[1726401394159,6.15630281,2413.1,2412.8,0.8682389]
[1726401394397,6.15630281,2413.1,2412.9,1.61048754]
[1726401394712,6.15630281,2413.1,2412.8,0.8682389]
[1726401394860,6.15630281,2413.1,2412.9,1.61049702]
[1726401395163,6.15630281,2413.1,2412.8,0.8682389]
[1726401395360,6.15630281,2413.1,2412.9,1.61051054]
[1726401395662,6.15630281,2413.1,2412.8,0.8682389]
[1726401396000,6.15630281,2413.1,2412.9,1.61048616]
[1726401396172,6.15630281,2413.1,2412.8,0.8682389]
[1726401396373,6.15630281,2413.1,2412.9,1.61050479]
[1726401396601,6.15630281,2413.1,2412.8,0.8682389]
[1726401396799,6.15630281,2413.1,2412.9,1.61056003]
[1726401397103,6.15630281,2413.1,2412.8,0.8682389]
[1726401397299,6.15630281,2413.1,2412.9,1.61055818]
[1726401397620,6.15630281,2413.1,2412.8,0.8682389]
[1726401397833,6.15630281,2413.1,2412.9,1.61057551]
[1726401397983,6.15630281,2413.1,2412.8,0.8682389]
[1726401398180,6.15630281,2413.1,2412.9,1.61056969]
[1726401398385,6.15630281,2413.1,2412.8,0.8682389]
[1726401398684,6.15630281,2413.1,2412.9,1.6106183]
[1726401398880,6.15630281,2413.1,2412.8,0.8682389]
[1726401399097,6.15630281,2413.1,2412.9,1.6106219]
[1726401399325,6.15630281,2413.1,2412.8,0.8682389]
[1726401399506,7.18631109,2413.1,2412.9,1.6106204]
[1726401399724,11.33045109,2413.1,2412.8,0.8682389]
[1726401399920,7.18631109,2413.1,2412.9,1.61069718]
[1726401400254,7.18631109,2413.1,2412.8,0.8682389]
[1726401400527,7.18631109,2413.1,2412.9,1.61072331]
[1726401400735,7.18631109,2413.1,2412.8,0.8682389]
[1726401400888,7.18631109,2413.1,2412.9,1.61070873]
[1726401401089,0.71863111,2413.0,2412.8,0.8682389]
[1726401401311,0.77058027,2413.0,2412.9,1.61074899]
[1726401402005,0.77058027,2413.0,2412.9,1.61073349]
[1726401403293,0.05194916,2413.0,2412.9,1.61073349]
[1726401406022,4.19615916,2413.0,2412.9,1.61073349]
[1726401406312,4.14439,2412.9,2412.7,0.8682389]
[1726401406523,4.14439,2412.9,2412.8,1.61103618]
[1726401407035,4.14439,2412.9,2412.8,1.61099376]
[1726401407718,4.14439,2412.9,2412.8,2.47923266]
[1726401408132,4.14439,2412.9,2412.8,1.61099376]
[1726401408456,4.14439,2412.9,2412.8,2.47923266]
[1726401408632,4.14439,2412.9,2412.8,1.61099376]
[1726401414302,4.19446469,2412.9,2412.8,1.61099376]
[1726401416573,4.14456,2412.8,2412.7,0.8682389]
[1726401416794,4.14456,2412.8,2412.7,2.91337959]
[1726401417097,4.19451747,2412.8,2412.7,2.91337959]
[1726401417256,4.19451747,2412.8,2412.7,2.4792589]
[1726401417459,4.19451747,2412.8,2412.7,2.91337558]
[1726401417870,4.19451747,2412.8,2412.7,2.4792589]
[1726401418071,4.19451747,2412.8,2412.7,2.91336501]
[1726401418301,4.19451747,2412.8,2412.7,2.4792589]
[1726401418485,4.19451747,2412.8,2412.7,2.91336218]
[1726401418686,4.19451747,2412.8,2412.7,5.21226218]
[1726401418687,0.04995747,2412.8,2412.7,5.21226218]
[1726401418890,1.9583,2413.3,2412.7,6.32018046]
[1726401419078,0.04998215,2413.2,2413.0,0.87010273]
[1726401419394,0.04919293,2413.2,2413.1,1.61102]
[1726401419805,4.14358,2413.4,2413.1,1.61102]
[1726401419979,0.04743967,2413.2,2413.0,3.16900273]
[1726401420164,4.14358,2413.4,2413.1,1.60974312]
[1726401420367,0.04732248,2413.1,2413.0,4.20424162]
[1726401420587,4.14371,2413.3,2413.0,4.77875621]
[1726401420777,0.04732248,2413.1,2413.0,3.16900273]
[1726401421101,0.04732248,2413.1,2413.0,4.77877814]
[1726401421302,4.14358,2413.4,2413.0,4.77877814]
[1726401421467,0.04755685,2413.3,2413.1,1.60977541]
[1726401421671,0.04755685,2413.3,2413.0,3.16900273]
[1726401421992,0.04755685,2413.3,2413.1,1.60960994]
[1726401422196,0.04755685,2413.3,2413.0,3.16900273]
[1726401422390,0.04755685,2413.3,2413.1,1.60948298]
[1726401422562,0.04755685,2413.3,2413.0,3.16900273]
[1726401422762,0.04755685,2413.3,2413.1,1.60945391]
[1726401422972,0.04755685,2413.3,2413.0,3.16900273]
[1726401423209,0.04755685,2413.3,2413.1,1.6094572]
[1726401423394,0.04755685,2413.3,2413.0,2.2989]
[1726401423597,0.04755685,2413.3,2413.1,1.60930049]
[1726401423796,0.04755685,2413.3,2413.0,2.2989]
[1726401423978,0.04755685,2413.3,2413.1,1.60930063]
[1726401424314,0.04755685,2413.3,2413.0,4.03059384]
[1726401424604,0.04755685,2413.3,2413.0,3.16049111]
[1726401424818,0.04755685,2413.3,2413.1,1.60904127]
[1726401425111,0.04755685,2413.3,2413.0,4.03059384]
[1726401425270,0.04755685,2413.3,2413.0,3.16049111]
[1726401427066,0.04755685,2413.3,2413.1,2.01168324]
[1726401427264,4.14327,2413.6,2413.2,2.4224]
[1726401427507,0.04773895,2413.5,2413.2,2.4224]
[1726401444826,0.04773895,2413.5,2413.0,5.87580384]
[1726401445132,0.04773895,2413.5,2413.0,7.42810111]
[1726401445337,0.04773895,2413.5,2413.0,2.4224]
[1726401445537,1.9583,2413.3,2412.8,3.29250273]
[1726401445762,0.04577234,2413.2,2412.9,1.60695583]
[1726401445940,6.10216,2413.3,2412.8,3.29250273]
[1726401446136,0.04577234,2413.2,2412.8,2.4224]
[1726401446352,6.10216,2413.3,2412.9,1.60693643]
[1726401446665,0.04577234,2413.2,2412.8,3.29250273]
[1726401446874,0.04577234,2413.2,2412.9,1.60699286]
[1726401447168,0.04565514,2413.1,2412.8,2.4224]
[1726401447462,6.10216,2413.3,2412.8,2.4224]
[1726401447780,7.126733,2413.3,2412.7,0.87010273]
[1726401448072,0.04577234,2413.2,2412.8,1.60720499]
[1726401448239,0.04577234,2413.2,2412.7,5.01480273]
[1726401448437,6.10216,2413.3,2412.8,1.60721728]
[1726401448639,0.04429642,2413.1,2412.7,6.48104662]
[1726401448839,0.04441361,2413.2,2412.8,1.60722074]
[1726401449037,0.04417921,2413.0,2412.7,5.01480273]
[1726401449361,0.044062,2412.9,2412.8,1.60725492]
[1726401449569,6.10216,2413.3,2412.8,1.60725492]
[1726401449863,0.04441361,2413.2,2412.7,2.33634662]
[1726401450024,0.04441361,2413.2,2412.8,1.60730645]
[1726401450229,0.04441361,2413.2,2412.7,6.48105662]
[1726401450542,0.04429642,2413.1,2412.8,1.60731084]
[1726401450842,4.14398,2413.2,2412.7,0.87010273]
[1726401451060,0.04417921,2413.0,2412.8,1.6073554]
[1726401451256,4.14422,2413.0,2412.7,0.87010273]
[1726401451428,0.04232855,2412.9,2412.6,3.33410273]
[1726401451628,0.04232855,2412.9,2412.7,1.60755788]
[1726401451830,0.04232855,2412.9,2412.6,3.33410273]
[1726401452065,0.04232855,2412.9,2412.7,1.60757109]
[1726401452265,0.04232855,2412.9,2412.6,3.33410273]
[1726401452565,0.04232855,2412.9,2412.7,1.60767567]
[1726401452773,0.04232855,2412.9,2412.6,3.33410273]
[1726401452978,0.04232855,2412.9,2412.7,1.60768072]
[1726401453279,0.04232855,2412.9,2412.6,3.33410273]
[1726401453477,0.04232855,2412.9,2412.7,1.60777808]
[1726401453778,0.04232855,2412.9,2412.6,3.33410273]
[1726401453983,0.04232855,2412.9,2412.7,1.60777694]
[1726401454179,0.04232855,2412.9,2412.6,3.33410273]
[1726401454180,2.00062855,2412.9,2412.6,3.33410273]
[1726401454486,2.00062855,2412.9,2412.7,1.60778627]
[1726401454673,2.00062855,2412.9,2412.6,3.33410273]
[1726401454856,2.00062855,2412.9,2412.7,1.60789401]
[1726401455058,2.00062855,2412.9,2412.6,3.33410273]
[1726401455252,2.00062855,2412.9,2412.6,2.464]
[1726401456181,2.00062855,2412.9,2412.7,1.60818478]
[1726401456484,2.00062855,2412.9,2412.6,3.33410273]
[1726401456682,2.00062855,2412.9,2412.7,1.60808453]
[1726401456981,2.00062855,2412.9,2412.6,3.33410273]
[1726401457189,2.00062855,2412.9,2412.7,1.60807512]
[1726401457485,2.00062855,2412.9,2412.6,3.33410273]
[1726401457779,2.00062855,2412.9,2412.7,1.60816502]
[1726401457978,2.00062855,2412.9,2412.6,3.33410273]
[1726401458190,2.00062855,2412.9,2412.7,1.60825744]
[1726401458343,2.00062855,2412.9,2412.6,3.33410273]
[1726401458665,2.00062855,2412.9,2412.7,1.60820248]
[1726401458868,0.04232855,2412.9,2412.6,3.33410273]
[1726401459053,0.04232855,2412.9,2412.7,1.60821755]
[1726401459255,0.04232855,2412.9,2412.6,4.62677584]
[1726401459456,0.04232855,2412.9,2412.7,1.60819253]
[1726401459790,0.04232855,2412.9,2412.6,4.62677584]
[1726401459954,0.04232855,2412.9,2412.7,1.60822146]
[1726401460277,0.04232855,2412.9,2412.6,4.62677584]
[1726401460482,0.04232855,2412.9,2412.7,1.60825804]
[1726401460689,6.10237,2413.1,2412.6,4.62677584]
[1726401460856,0.04195698,2412.8,2412.7,2.61562294]
[1726401461064,6.10237,2413.1,2412.7,1.60820552]
[1726401461387,6.10237,2413.1,2412.6,4.62677584]
[1726401461544,0.04214127,2413.0,2412.7,1.60808466]
[1726401461745,0.04214127,2413.0,2412.6,4.62677584]
[1726401461971,0.04214127,2413.0,2412.7,2.61550123]
[1726401462171,0.04214127,2413.0,2412.7,1.00741742]
[1726401463495,0.04214127,2413.0,2412.8,1.60835898]
[1726401463679,0.04214127,2413.0,2412.6,4.62677584]
[1726401463849,0.04214127,2413.0,2412.7,1.60840322]
[1726401464053,0.04214127,2413.0,2412.6,4.62677584]
[1726401464281,0.04214127,2413.0,2412.7,2.61580326]
[1726401464469,0.04214127,2413.0,2412.6,2.16277584]
[1726401464654,0.04214127,2413.0,2412.7,1.60847255]
[1726401464850,0.04214127,2413.0,2412.6,2.16277584]
[1726401465089,0.04214127,2413.0,2412.7,2.47860675]
[1726401465292,0.04214127,2413.0,2412.6,2.16277584]
[1726401465451,0.04214127,2413.0,2412.7,1.60841137]
[1726401465651,0.04214127,2413.0,2412.6,2.16277584]
[1726401465884,0.04214127,2413.0,2412.7,1.60844143]
[1726401466087,0.04214127,2413.0,2412.6,2.16277584]
[1726401466268,0.04214127,2413.0,2412.7,1.60845082]
[1726401466470,0.04214127,2413.0,2412.8,1.60848353]
[1726401466705,0.04214127,2413.0,2412.7,0.87010273]